{"text_format":"1","workbook":"xlsx","n_sheets":5,"sheets":["l_DETAILS","ll_STRUCTURE","lll_GOVERNANCE","lV_DECLARATIONS","W_LIST"],"not_rendered":{"charts":0,"images":6,"macros":1,"external_links":0,"defined_names":9,"comments":0,"pivot_tables":0},"unopened":[],"bounds":{"document_bytes":16777216,"sheet_cells":100000,"rows_first":2000,"rows_last":500,"rows_between":2000,"halvings":0,"cell_chars":16384,"cell_head_chars":4096},"cells_cut":0,"cells_raw":0,"read":"whole","date_system":"1900"}

{"sheet":"l_DETAILS","index":0,"n_rows":78,"n_cols":11,"rows_kept":78,"cut":false,"hidden":false,"merged":[[18,4,18,6],[20,4,20,6],[22,4,22,6],[24,4,24,6],[68,4,68,6],[39,4,39,6],[40,4,40,6],[43,1,43,6],[37,2,37,6],[28,2,31,2],[64,2,68,2],[30,4,30,6],[31,4,31,6],[33,4,33,6],[35,4,35,6],[62,2,62,3],[2,1,2,4],[8,4,8,6],[10,4,10,6],[12,4,12,6],[16,4,16,6],[12,2,12,3],[26,4,26,6],[28,4,28,6],[29,4,29,6],[64,4,64,6],[77,1,77,2],[75,2,76,4],[71,1,71,6],[72,2,72,6],[65,4,65,6],[66,4,66,6],[67,4,67,6]]}
[]
[null,"MALTA FINANCIAL SERVICES AUTHORITY",null,null,null,null,{"$f":"TODAY()","v":"2019-03-14"}]
[null,"Entity Questionnaire"]
[]
[null,"DETAILS SHEET"]
[]
[null,"APPLICANT DETAILS"]
[null,"Details of the Applicant in connection with which this questionnaire is being completed.  "]
[null,"I-1",null,"NAME"]
[]
[null,"I-2",null,"REGISTRATION NO."]
[]
[null,"I-3","DIRECT OR INDIRECT HOLDING IN APPLICANT",null,null,null,null,null,null,null,{"$f":"IF(E13=\"Indirect Holding\",1,0)","v":0}]
[]
[null,"QUALIFYING ENTITY DETAILS"]
[null,"Kindly provide the details of the Entity completing this questionnaire. "]
[null,"I-4",null,"ENTITY NAME"]
[]
[null,"I-5",null,"LEGAL FORM",null,null,null,null,null,{"$f":"IF(E19=\"Other\",1,0)","v":0},{"$f":"IF(E19>1,1,0)","v":0}]
[]
[null,"I-6",null,"IF I-5 : 'OTHER', PLEASE SPECIFY"]
[]
[null,"I-7",null,"REGISTRATION NO."]
[]
[null,"I-8",null,"DATE OF REGISTRATION"]
[]
[null,"I-9",null,"COUNTRY OF REGISTRATION"]
[]
[null,"I-10.1","Registered Address\n(Head Quarters) ","BUILDING NO."]
[null,"I-10.2",null,"STREET NAME"]
[null,"I-10.3",null,"CITY/TOWN"]
[null,"I-10.4",null,"POSTCODE"]
[]
[null,"I-11",null,"EMAIL"]
[]
[null,"I-12",null,"DIRECT LINE"]
[]
[null,"I-13","Kindly inform the Applicant to attach with the Entity Questionnaire a certified true copy of the Memorandum and Articles of Association or other constitutional document of the Qualifying Entity in .pdf format and saved as follows:"]
[]
[null,null,null,"TYPE OF DOCUMENT",null,null,null,null,null,{"$f":"IF(E40=\"Memorandum and Articles of Association\",\"M&A\",IF(E40=\"Other Constitutional document\",\"OthConsDocument\",IF(E40=\"Trust Deed\",\"TrustDeed\",\"\")))","v":""},{"$f":"IF(H40=\"Constitutional documents\",\"ConsDocument\",\"\")","v":""}]
[null,null,null,"KINDLY SAVE FILE AS:",{"$f":"IF(E17>1,(TEXT(G2,\"YYYYMMDD\")&\"_\"&E17&\"_\"&J40),\"\")","v":""}]
[]
[null,"QUALIFYING ENTITY REGISTERED OR TRADE NAMES"]
[null,"Kindly provide any former or current name(s) under which the Qualifying Entity has been registered or has traded. Kindly insert a new row for every entity name by clicking on the icon."]
[null,"I-14",null,null,"Name","Registered/Trade Name ","Current or Past"]
[null,null,null,"ENTITY NAME 1"]
[null,null,null,"ENTITY NAME 2"]
[null,null,null,"ENTITY NAME 3"]
[null,null,null,"ENTITY NAME 4"]
[null,null,null,"ENTITY NAME 5"]
[null,null,null,"ENTITY NAME 6"]
[null,null,null,"ENTITY NAME 7"]
[null,null,null,"ENTITY NAME 8"]
[null,null,null,"ENTITY NAME 9"]
[null,null,null,"ENTITY NAME 10"]
[null,null,null,"ENTITY NAME 11"]
[null,null,null,"ENTITY NAME 12"]
[null,null,null,"ENTITY NAME 13"]
[]
[]
[null,"QUALIFYING ENTITY BUSINESS ADDRESS"]
[null,"Kindly provide the details of the principal place of business if different from registered address."]
[null,"I-15","PRINCIPAL PLACE OF BUSINESS DIFFERENT THAN REGISTERED ADDRESS?"]
[]
[null,"I-16.1","Principal Business Address","BUILDING NO."]
[null,"I-16.2",null,"STREET NAME"]
[null,"I-16.3",null,"CITY/TOWN"]
[null,"I-16.4",null,"POSTCODE"]
[null,"I-16.5",null,"COUNTRY"]
[]
[null,"QUALIFYING ENTITY ACTIVITY/SERVICE DETAILS"]
[null,"Kindly provide a description of the Qualifying Entity's business activity/ies and/or service/s."]
[null,"I-17"]
[]
[]
[null,null,"For further guidance on the the respective terms please refer to the Glossary."]
[]
[null,"V.:EQ.2019.03.14"]

{"sheet":"ll_STRUCTURE","index":1,"n_rows":355,"n_cols":35,"rows_kept":355,"cut":false,"hidden":false,"merged":[[352,2,353,4],[354,1,354,2],[349,6,349,10],[347,2,347,4],[348,2,348,4],[349,2,349,4],[231,10,232,10],[231,8,232,9],[233,8,233,9],[234,8,234,9],[235,8,235,9],[236,8,236,9],[237,8,237,9],[231,2,232,2],[331,8,331,9],[332,8,332,9],[315,8,315,9],[316,8,316,9],[323,8,323,9],[312,8,312,9],[313,8,313,9],[314,8,314,9],[310,8,310,9],[311,8,311,9],[2,1,2,4],[4,1,4,13],[346,6,346,10],[347,6,347,10],[348,6,348,10],[123,11,124,12],[125,11,125,12],[231,11,231,12],[301,8,301,9],[302,8,302,9],[325,8,325,9],[326,8,326,9],[327,8,327,9],[328,8,328,9],[329,8,329,9],[330,8,330,9],[324,8,324,9],[303,8,303,9],[304,8,304,9],[305,8,305,9],[306,8,306,9],[307,8,307,9],[308,8,308,9],[309,8,309,9],[319,8,319,9],[320,8,320,9],[321,8,321,9],[322,8,322,9],[292,8,292,9],[293,8,293,9],[294,8,294,9],[295,8,295,9],[296,8,296,9],[297,8,297,9],[298,8,298,9],[299,8,299,9],[300,8,300,9],[317,8,317,9],[318,8,318,9],[283,8,283,9],[284,8,284,9],[285,8,285,9],[286,8,286,9],[287,8,287,9],[288,8,288,9],[289,8,289,9],[290,8,290,9],[291,8,291,9],[274,8,274,9],[275,8,275,9],[276,8,276,9],[277,8,277,9],[278,8,278,9],[279,8,279,9],[280,8,280,9],[281,8,281,9],[282,8,282,9],[265,8,265,9],[266,8,266,9],[267,8,267,9],[268,8,268,9],[269,8,269,9],[270,8,270,9],[271,8,271,9],[272,8,272,9],[273,8,273,9],[256,8,256,9],[257,8,257,9],[258,8,258,9],[259,8,259,9],[260,8,260,9],[261,8,261,9],[262,8,262,9],[263,8,263,9],[264,8,264,9],[247,8,247,9],[248,8,248,9],[249,8,249,9],[250,8,250,9],[251,8,251,9],[252,8,252,9],[253,8,253,9],[254,8,254,9],[255,8,255,9],[238,8,238,9],[239,8,239,9],[240,8,240,9],[241,8,241,9],[242,8,242,9],[243,8,243,9],[244,8,244,9],[245,8,245,9],[246,8,246,9],[231,6,232,6],[231,7,232,7],[123,8,124,10],[125,8,125,10],[126,8,126,10],[127,8,127,10],[128,8,128,10],[129,8,129,10],[130,8,130,10],[131,8,131,10],[132,8,132,10],[149,8,149,10],[150,8,150,10],[151,8,151,10],[152,8,152,10],[153,8,153,10],[154,8,154,10],[155,8,155,10],[156,8,156,10],[165,8,165,10],[166,8,166,10],[167,8,167,10],[157,8,157,10],[158,8,158,10],[340,2,340,4],[342,2,342,4],[339,2,339,4],[341,2,341,4],[338,2,338,4],[133,8,133,10],[134,8,134,10],[135,8,135,10],[136,8,136,10],[137,8,137,10],[138,8,138,10],[139,8,139,10],[140,8,140,10],[141,8,141,10],[142,8,142,10],[143,8,143,10],[144,8,144,10],[145,8,145,10],[146,8,146,10],[147,8,147,10],[148,8,148,10],[231,3,232,3],[231,4,232,4],[231,5,232,5],[123,2,124,2],[6,2,6,6],[8,4,8,6],[123,3,124,3],[123,4,124,4],[121,2,121,4],[123,7,124,7],[12,1,12,7],[14,6,14,7],[159,8,159,10],[160,8,160,10],[161,8,161,10],[162,8,162,10],[163,8,163,10],[164,8,164,10],[168,8,168,10],[169,8,169,10],[170,8,170,10],[171,8,171,10],[172,8,172,10],[173,8,173,10],[174,8,174,10],[175,8,175,10],[176,8,176,10],[177,8,177,10],[190,8,190,10],[191,8,191,10],[193,8,193,10],[194,8,194,10],[195,8,195,10],[178,8,178,10],[179,8,179,10],[180,8,180,10],[181,8,181,10],[182,8,182,10],[183,8,183,10],[184,8,184,10],[185,8,185,10],[186,8,186,10],[144,11,144,12],[145,11,145,12],[146,11,146,12],[147,11,147,12],[214,8,214,10],[215,8,215,10],[216,8,216,10],[217,8,217,10],[218,8,218,10],[205,8,205,10],[206,8,206,10],[207,8,207,10],[208,8,208,10],[209,8,209,10],[210,8,210,10],[211,8,211,10],[212,8,212,10],[213,8,213,10],[196,8,196,10],[197,8,197,10],[198,8,198,10],[199,8,199,10],[200,8,200,10],[201,8,201,10],[135,11,135,12],[136,11,136,12],[137,11,137,12],[138,11,138,12],[139,11,139,12],[140,11,140,12],[141,11,141,12],[142,11,142,12],[143,11,143,12],[126,11,126,12],[127,11,127,12],[128,11,128,12],[129,11,129,12],[130,11,130,12],[131,11,131,12],[132,11,132,12],[133,11,133,12],[134,11,134,12],[148,11,148,12],[149,11,149,12],[150,11,150,12],[151,11,151,12],[152,11,152,12],[153,11,153,12],[154,11,154,12],[155,11,155,12],[156,11,156,12],[157,11,157,12],[158,11,158,12],[159,11,159,12],[160,11,160,12],[161,11,161,12],[162,11,162,12],[163,11,163,12],[164,11,164,12],[165,11,165,12],[166,11,166,12],[167,11,167,12],[168,11,168,12],[169,11,169,12],[170,11,170,12],[171,11,171,12],[172,11,172,12],[173,11,173,12],[174,11,174,12],[175,11,175,12],[176,11,176,12],[177,11,177,12],[178,11,178,12],[179,11,179,12],[180,11,180,12],[181,11,181,12],[182,11,182,12],[183,11,183,12],[184,11,184,12],[185,11,185,12],[186,11,186,12],[187,11,187,12],[188,11,188,12],[189,11,189,12],[190,11,190,12],[191,11,191,12],[192,11,192,12],[193,11,193,12],[194,11,194,12],[195,11,195,12],[196,11,196,12],[197,11,197,12],[198,11,198,12],[199,11,199,12],[200,11,200,12],[201,11,201,12],[202,11,202,12],[203,11,203,12],[204,11,204,12],[205,11,205,12],[206,11,206,12],[207,11,207,12],[208,11,208,12],[218,11,218,12],[219,11,219,12],[220,11,220,12],[221,11,221,12],[222,11,222,12],[223,11,223,12],[224,11,224,12],[209,11,209,12],[210,11,210,12],[211,11,211,12],[212,11,212,12],[213,11,213,12],[214,11,214,12],[215,11,215,12],[216,11,216,12],[217,11,217,12],[337,6,337,10],[338,6,338,10],[339,6,339,10],[340,6,340,10],[341,6,341,10],[342,6,342,10],[14,2,15,2],[14,3,15,3],[14,4,15,4],[14,5,15,5],[223,8,223,10],[224,8,224,10],[219,8,219,10],[220,8,220,10],[221,8,221,10],[222,8,222,10],[202,8,202,10],[203,8,203,10],[204,8,204,10],[187,8,187,10],[188,8,188,10],[189,8,189,10],[123,5,123,6],[192,8,192,10]]}
[]
[null,"MALTA FINANCIAL SERVICES AUTHORITY",null,null,null,null,null,null,null,null,null,null,{"$f":"TODAY()","v":"2019-03-14"}]
[null,"Entity Questionnaire"]
[]
[null,"STRUCTURE SHEET"]
[]
[null,"ll-1","Kindly inform the Applicant to attach Organisational Chart, depicting the Entity's Unitholding Structure and Group Structure, with the Application."]
[]
[null,null,null,"SAVE FILE AS",{"$f":"IF(l_DETAILS!E17>0,(TEXT(M2,\"YYYYMMDD\")&\"_\"&l_DETAILS!E17&\"_OrganisationalChart\"),\"\")","v":""}]
[]
[]
[null,"QUALIFYING ENTITY UNITHOLDER/S"]
[null,"Kindly provide the details of the Qualifying Entity's direct Unitholder/s. Kindly insert a new row for every person by clicking on the icon.\nNote: This structure should also be identified in Annex 1 to the VFA Agent Application Form."]
[]
[null,"ll-2","PERSON TYPE","IF ENTITY, FORM?","IF OTHER, \nKINDLY SPECIFY","NAME","UNITHOLDING IN QUALIFYING ENTITY\nPERCENTAGE "]
[null,null,null,null,null,null,"HOLDING","CONTROL"]
[null,1,null,null,null,null,null,null,null,null,null,null,null,null,null,null,null,{"$f":"IF(D17>0,IF(D17=\"Other\",2,1),\"-\")","v":"-"},null,null,null,null,null,null,null,null,null,null,null,null,null,null,{"$f":"IF(D17>0,1,0)","v":0},{"$f":"IF(D17=\"Other\",1,0)","v":0},{"$f":"IF(AND(AG17=1,AH17=0),1,0)","v":0}]
[null,2,null,null,null,null,null,null,null,null,null,null,null,null,null,null,null,{"$f":"IF(D18>0,IF(D18=\"Other\",2,1),\"-\")","v":"-"},null,null,null,null,null,null,null,null,null,null,null,null,null,null,0,0,{"$f":"IF(AND(AG18=1,AH18=0),1,0)","v":0}]
[null,3,null,null,null,null,null,null,null,null,null,null,null,null,null,null,null,"-",null,null,null,null,null,null,null,null,null,null,null,null,null,null,0,0,0]
[null,4,null,null,null,null,null,null,null,null,null,null,null,null,null,null,null,"-",null,null,null,null,null,null,null,null,null,null,null,null,null,null,0,0,0]
[null,5,null,null,null,null,null,null,null,null,null,null,null,null,null,null,null,"-",null,null,null,null,null,null,null,null,null,null,null,null,null,null,0,0,0]
[null,6,null,null,null,null,null,null,null,null,null,null,null,null,null,null,null,"-",null,null,null,null,null,null,null,null,null,null,null,null,null,null,0,0,0]
[null,7,null,null,null,null,null,null,null,null,null,null,null,null,null,null,null,"-",null,null,null,null,null,null,null,null,null,null,null,null,null,null,0,0,0]
[null,8,null,null,null,null,null,null,null,null,null,null,null,null,null,null,null,"-",null,null,null,null,null,null,null,null,null,null,null,null,null,null,0,0,0]
[null,9,null,null,null,null,null,null,null,null,null,null,null,null,null,null,null,"-",null,null,null,null,null,null,null,null,null,null,null,null,null,null,0,0,0]
[null,10,null,null,null,null,null,null,null,null,null,null,null,null,null,null,null,"-",null,null,null,null,null,null,null,null,null,null,null,null,null,null,0,0,0]
[null,11,null,null,null,null,null,null,null,null,null,null,null,null,null,null,null,"-",null,null,null,null,null,null,null,null,null,null,null,null,null,null,0,0,0]
[null,12,null,null,null,null,null,null,null,null,null,null,null,null,null,null,null,"-",null,null,null,null,null,null,null,null,null,null,null,null,null,null,0,0,0]
[null,13,null,null,null,null,null,null,null,null,null,null,null,null,null,null,null,"-",null,null,null,null,null,null,null,null,null,null,null,null,null,null,0,0,0]
[null,14,null,null,null,null,null,null,null,null,null,null,null,null,null,null,null,"-",null,null,null,null,null,null,null,null,null,null,null,null,null,null,0,0,0]
[null,15,null,null,null,null,null,null,null,null,null,null,null,null,null,null,null,"-",null,null,null,null,null,null,null,null,null,null,null,null,null,null,0,0,0]
[null,16,null,null,null,null,null,null,null,null,null,null,null,null,null,null,null,"-",null,null,null,null,null,null,null,null,null,null,null,null,null,null,0,0,0]
[null,17,null,null,null,null,null,null,null,null,null,null,null,null,null,null,null,"-",null,null,null,null,null,null,null,null,null,null,null,null,null,null,0,0,0]
[null,18,null,null,null,null,null,null,null,null,null,null,null,null,null,null,null,"-",null,null,null,null,null,null,null,null,null,null,null,null,null,null,0,0,0]
[null,19,null,null,null,null,null,null,null,null,null,null,null,null,null,null,null,"-",null,null,null,null,null,null,null,null,null,null,null,null,null,null,0,0,0]
[null,20,null,null,null,null,null,null,null,null,null,null,null,null,null,null,null,"-",null,null,null,null,null,null,null,null,null,null,null,null,null,null,0,0,0]
[null,21,null,null,null,null,null,null,null,null,null,null,null,null,null,null,null,"-",null,null,null,null,null,null,null,null,null,null,null,null,null,null,0,0,0]
[null,22,null,null,null,null,null,null,null,null,null,null,null,null,null,null,null,"-",null,null,null,null,null,null,null,null,null,null,null,null,null,null,0,0,0]
[null,23,null,null,null,null,null,null,null,null,null,null,null,null,null,null,null,"-",null,null,null,null,null,null,null,null,null,null,null,null,null,null,0,0,0]
[null,24,null,null,null,null,null,null,null,null,null,null,null,null,null,null,null,"-",null,null,null,null,null,null,null,null,null,null,null,null,null,null,0,0,0]
[null,25,null,null,null,null,null,null,null,null,null,null,null,null,null,null,null,"-",null,null,null,null,null,null,null,null,null,null,null,null,null,null,0,0,0]
[null,26,null,null,null,null,null,null,null,null,null,null,null,null,null,null,null,"-",null,null,null,null,null,null,null,null,null,null,null,null,null,null,0,0,0]
[null,27,null,null,null,null,null,null,null,null,null,null,null,null,null,null,null,"-",null,null,null,null,null,null,null,null,null,null,null,null,null,null,0,0,0]
[null,28,null,null,null,null,null,null,null,null,null,null,null,null,null,null,null,"-",null,null,null,null,null,null,null,null,null,null,null,null,null,null,0,0,0]
[null,29,null,null,null,null,null,null,null,null,null,null,null,null,null,null,null,"-",null,null,null,null,null,null,null,null,null,null,null,null,null,null,0,0,0]
[null,30,null,null,null,null,null,null,null,null,null,null,null,null,null,null,null,"-",null,null,null,null,null,null,null,null,null,null,null,null,null,null,0,0,0]
[null,31,null,null,null,null,null,null,null,null,null,null,null,null,null,null,null,"-",null,null,null,null,null,null,null,null,null,null,null,null,null,null,0,0,0]
[null,32,null,null,null,null,null,null,null,null,null,null,null,null,null,null,null,"-",null,null,null,null,null,null,null,null,null,null,null,null,null,null,0,0,0]
[null,33,null,null,null,null,null,null,null,null,null,null,null,null,null,null,null,"-",null,null,null,null,null,null,null,null,null,null,null,null,null,null,{"$f":"IF(D49>0,1,0)","v":0},{"$f":"IF(D49=\"Other\",1,0)","v":0},0]
[null,34,null,null,null,null,null,null,null,null,null,null,null,null,null,null,null,"-",null,null,null,null,null,null,null,null,null,null,null,null,null,null,0,0,0]
[null,35,null,null,null,null,null,null,null,null,null,null,null,null,null,null,null,"-",null,null,null,null,null,null,null,null,null,null,null,null,null,null,0,0,0]
[null,36,null,null,null,null,null,null,null,null,null,null,null,null,null,null,null,"-",null,null,null,null,null,null,null,null,null,null,null,null,null,null,0,0,0]
[null,37,null,null,null,null,null,null,null,null,null,null,null,null,null,null,null,"-",null,null,null,null,null,null,null,null,null,null,null,null,null,null,0,0,0]
[null,38,null,null,null,null,null,null,null,null,null,null,null,null,null,null,null,"-",null,null,null,null,null,null,null,null,null,null,null,null,null,null,0,0,0]
[null,39,null,null,null,null,null,null,null,null,null,null,null,null,null,null,null,"-",null,null,null,null,null,null,null,null,null,null,null,null,null,null,0,0,0]
[null,40,null,null,null,null,null,null,null,null,null,null,null,null,null,null,null,"-",null,null,null,null,null,null,null,null,null,null,null,null,null,null,0,0,0]
[null,41,null,null,null,null,null,null,null,null,null,null,null,null,null,null,null,"-",null,null,null,null,null,null,null,null,null,null,null,null,null,null,0,0,0]
[null,42,null,null,null,null,null,null,null,null,null,null,null,null,null,null,null,"-",null,null,null,null,null,null,null,null,null,null,null,null,null,null,0,0,0]
[null,43,null,null,null,null,null,null,null,null,null,null,null,null,null,null,null,"-",null,null,null,null,null,null,null,null,null,null,null,null,null,null,0,0,0]
[null,44,null,null,null,null,null,null,null,null,null,null,null,null,null,null,null,"-",null,null,null,null,null,null,null,null,null,null,null,null,null,null,0,0,0]
[null,45,null,null,null,null,null,null,null,null,null,null,null,null,null,null,null,"-",null,null,null,null,null,null,null,null,null,null,null,null,null,null,0,0,0]
[null,46,null,null,null,null,null,null,null,null,null,null,null,null,null,null,null,"-",null,null,null,null,null,null,null,null,null,null,null,null,null,null,0,0,0]
[null,47,null,null,null,null,null,null,null,null,null,null,null,null,null,null,null,"-",null,null,null,null,null,null,null,null,null,null,null,null,null,null,0,0,0]
[null,48,null,null,null,null,null,null,null,null,null,null,null,null,null,null,null,"-",null,null,null,null,null,null,null,null,null,null,null,null,null,null,0,0,0]
[null,49,null,null,null,null,null,null,null,null,null,null,null,null,null,null,null,"-",null,null,null,null,null,null,null,null,null,null,null,null,null,null,0,0,0]
[null,50,null,null,null,null,null,null,null,null,null,null,null,null,null,null,null,"-",null,null,null,null,null,null,null,null,null,null,null,null,null,null,0,0,0]
[null,51,null,null,null,null,null,null,null,null,null,null,null,null,null,null,null,"-",null,null,null,null,null,null,null,null,null,null,null,null,null,null,0,0,0]
[null,52,null,null,null,null,null,null,null,null,null,null,null,null,null,null,null,"-",null,null,null,null,null,null,null,null,null,null,null,null,null,null,0,0,0]
[null,53,null,null,null,null,null,null,null,null,null,null,null,null,null,null,null,"-",null,null,null,null,null,null,null,null,null,null,null,null,null,null,0,0,0]
[null,54,null,null,null,null,null,null,null,null,null,null,null,null,null,null,null,"-",null,null,null,null,null,null,null,null,null,null,null,null,null,null,0,0,0]
[null,55,null,null,null,null,null,null,null,null,null,null,null,null,null,null,null,"-",null,null,null,null,null,null,null,null,null,null,null,null,null,null,0,0,0]
[null,56,null,null,null,null,null,null,null,null,null,null,null,null,null,null,null,"-",null,null,null,null,null,null,null,null,null,null,null,null,null,null,0,0,0]
[null,57,null,null,null,null,null,null,null,null,null,null,null,null,null,null,null,"-",null,null,null,null,null,null,null,null,null,null,null,null,null,null,0,0,0]
[null,58,null,null,null,null,null,null,null,null,null,null,null,null,null,null,null,"-",null,null,null,null,null,null,null,null,null,null,null,null,null,null,0,0,0]
[null,59,null,null,null,null,null,null,null,null,null,null,null,null,null,null,null,"-",null,null,null,null,null,null,null,null,null,null,null,null,null,null,0,0,0]
[null,60,null,null,null,null,null,null,null,null,null,null,null,null,null,null,null,"-",null,null,null,null,null,null,null,null,null,null,null,null,null,null,0,0,0]
[null,61,null,null,null,null,null,null,null,null,null,null,null,null,null,null,null,"-",null,null,null,null,null,null,null,null,null,null,null,null,null,null,0,0,0]
[null,62,null,null,null,null,null,null,null,null,null,null,null,null,null,null,null,"-",null,null,null,null,null,null,null,null,null,null,null,null,null,null,0,0,0]
[null,63,null,null,null,null,null,null,null,null,null,null,null,null,null,null,null,"-",null,null,null,null,null,null,null,null,null,null,null,null,null,null,0,0,0]
[null,64,null,null,null,null,null,null,null,null,null,null,null,null,null,null,null,"-",null,null,null,null,null,null,null,null,null,null,null,null,null,null,0,0,0]
[null,65,null,null,null,null,null,null,null,null,null,null,null,null,null,null,null,"-",null,null,null,null,null,null,null,null,null,null,null,null,null,null,{"$f":"IF(D81>0,1,0)","v":0},{"$f":"IF(D81=\"Other\",1,0)","v":0},0]
[null,66,null,null,null,null,null,null,null,null,null,null,null,null,null,null,null,{"$f":"IF(D82>0,IF(D82=\"Other\",2,1),\"-\")","v":"-"},null,null,null,null,null,null,null,null,null,null,null,null,null,null,0,0,{"$f":"IF(AND(AG82=1,AH82=0),1,0)","v":0}]
[null,67,null,null,null,null,null,null,null,null,null,null,null,null,null,null,null,"-",null,null,null,null,null,null,null,null,null,null,null,null,null,null,0,0,0]
[null,68,null,null,null,null,null,null,null,null,null,null,null,null,null,null,null,"-",null,null,null,null,null,null,null,null,null,null,null,null,null,null,0,0,0]
[null,69,null,null,null,null,null,null,null,null,null,null,null,null,null,null,null,"-",null,null,null,null,null,null,null,null,null,null,null,null,null,null,0,0,0]
[null,70,null,null,null,null,null,null,null,null,null,null,null,null,null,null,null,"-",null,null,null,null,null,null,null,null,null,null,null,null,null,null,0,0,0]
[null,71,null,null,null,null,null,null,null,null,null,null,null,null,null,null,null,"-",null,null,null,null,null,null,null,null,null,null,null,null,null,null,0,0,0]
[null,72,null,null,null,null,null,null,null,null,null,null,null,null,null,null,null,"-",null,null,null,null,null,null,null,null,null,null,null,null,null,null,0,0,0]
[null,73,null,null,null,null,null,null,null,null,null,null,null,null,null,null,null,"-",null,null,null,null,null,null,null,null,null,null,null,null,null,null,0,0,0]
[null,74,null,null,null,null,null,null,null,null,null,null,null,null,null,null,null,"-",null,null,null,null,null,null,null,null,null,null,null,null,null,null,0,0,0]
[null,75,null,null,null,null,null,null,null,null,null,null,null,null,null,null,null,"-",null,null,null,null,null,null,null,null,null,null,null,null,null,null,0,0,0]
[null,76,null,null,null,null,null,null,null,null,null,null,null,null,null,null,null,"-",null,null,null,null,null,null,null,null,null,null,null,null,null,null,0,0,0]
[null,77,null,null,null,null,null,null,null,null,null,null,null,null,null,null,null,"-",null,null,null,null,null,null,null,null,null,null,null,null,null,null,0,0,0]
[null,78,null,null,null,null,null,null,null,null,null,null,null,null,null,null,null,"-",null,null,null,null,null,null,null,null,null,null,null,null,null,null,0,0,0]
[null,79,null,null,null,null,null,null,null,null,null,null,null,null,null,null,null,"-",null,null,null,null,null,null,null,null,null,null,null,null,null,null,0,0,0]
[null,80,null,null,null,null,null,null,null,null,null,null,null,null,null,null,null,"-",null,null,null,null,null,null,null,null,null,null,null,null,null,null,0,0,0]
[null,81,null,null,null,null,null,null,null,null,null,null,null,null,null,null,null,"-",null,null,null,null,null,null,null,null,null,null,null,null,null,null,0,0,0]
[null,82,null,null,null,null,null,null,null,null,null,null,null,null,null,null,null,"-",null,null,null,null,null,null,null,null,null,null,null,null,null,null,0,0,0]
[null,83,null,null,null,null,null,null,null,null,null,null,null,null,null,null,null,"-",null,null,null,null,null,null,null,null,null,null,null,null,null,null,0,0,0]
[null,84,null,null,null,null,null,null,null,null,null,null,null,null,null,null,null,"-",null,null,null,null,null,null,null,null,null,null,null,null,null,null,0,0,0]
[null,85,null,null,null,null,null,null,null,null,null,null,null,null,null,null,null,"-",null,null,null,null,null,null,null,null,null,null,null,null,null,null,0,0,0]
[null,86,null,null,null,null,null,null,null,null,null,null,null,null,null,null,null,"-",null,null,null,null,null,null,null,null,null,null,null,null,null,null,0,0,0]
[null,87,null,null,null,null,null,null,null,null,null,null,null,null,null,null,null,"-",null,null,null,null,null,null,null,null,null,null,null,null,null,null,0,0,0]
[null,88,null,null,null,null,null,null,null,null,null,null,null,null,null,null,null,"-",null,null,null,null,null,null,null,null,null,null,null,null,null,null,0,0,0]
[null,89,null,null,null,null,null,null,null,null,null,null,null,null,null,null,null,"-",null,null,null,null,null,null,null,null,null,null,null,null,null,null,0,0,0]
[null,90,null,null,null,null,null,null,null,null,null,null,null,null,null,null,null,"-",null,null,null,null,null,null,null,null,null,null,null,null,null,null,0,0,0]
[null,91,null,null,null,null,null,null,null,null,null,null,null,null,null,null,null,"-",null,null,null,null,null,null,null,null,null,null,null,null,null,null,0,0,0]
[null,92,null,null,null,null,null,null,null,null,null,null,null,null,null,null,null,"-",null,null,null,null,null,null,null,null,null,null,null,null,null,null,0,0,0]
[null,93,null,null,null,null,null,null,null,null,null,null,null,null,null,null,null,"-",null,null,null,null,null,null,null,null,null,null,null,null,null,null,0,0,0]
[null,94,null,null,null,null,null,null,null,null,null,null,null,null,null,null,null,"-",null,null,null,null,null,null,null,null,null,null,null,null,null,null,0,0,0]
[null,95,null,null,null,null,null,null,null,null,null,null,null,null,null,null,null,"-",null,null,null,null,null,null,null,null,null,null,null,null,null,null,0,0,0]
[null,96,null,null,null,null,null,null,null,null,null,null,null,null,null,null,null,"-",null,null,null,null,null,null,null,null,null,null,null,null,null,null,0,0,0]
[null,97,null,null,null,null,null,null,null,null,null,null,null,null,null,null,null,"-",null,null,null,null,null,null,null,null,null,null,null,null,null,null,0,0,0]
[null,98,null,null,null,null,null,null,null,null,null,null,null,null,null,null,null,"-",null,null,null,null,null,null,null,null,null,null,null,null,null,null,0,0,0]
[null,99,null,null,null,null,null,null,null,null,null,null,null,null,null,null,null,"-",null,null,null,null,null,null,null,null,null,null,null,null,null,null,0,0,0]
[null,100,null,null,null,null,null,null,null,null,null,null,null,null,null,null,null,"-",null,null,null,null,null,null,null,null,null,null,null,null,null,null,0,0,0]
[]
[]
[null,"GROUP STRUCTURE"]
[null,"Kindly provide the details of the Qualifying Entity's holding or controlling interest/s in other Entities. Kindly insert a new row for every Entity by clicking on the icon."]
[]
[null,"ll-2","DOES THE QUALIFYING ENTITY HAVE HOLDING OR CONTROLLING INTEREST/S IN OTHER ENTITIES?"]
[]
[null,"ll-3","LEGAL ENTITY NAME","FORM","IF OTHER, \nKINDLY SPECIFY","UNITHOLDING IN QUALIFYING ENTITY\nPERCENTAGE ",null,"CURRENTLY REGULATED?","DOES THE APPLICANT NEED TO SPECIFY FURTHER DETAILS IN THE APPLICATION UNDER REGULATORY HISTORY?",null,null,"ACTIVITIES "]
[null,null,null,null,null,"HOLDING","CONTROL"]
[null,1,null,null,null,null,null,null,{"$f":"IF(H126=\"Yes\",\"Kindly provide further details under Regulatory History\",IF(H126=\"No\",\"Not applicable\",\"\"))","v":""},null,null,null,null,null,null,null,null,null,null,null,null,null,null,null,null,null,null,null,null,null,null,null,{"$f":"IF(D126>0,1,0)","v":0},{"$f":"IF(D126=\"Other\",1,0)","v":0},{"$f":"IF(AND(AG126=1,AH126=0),1,0)","v":0}]
[null,2,null,null,null,null,null,null,{"$f":"IF(H127=\"Yes\",\"Kindly provide further details under Regulatory History\",IF(H127=\"No\",\"Not applicable\",\"\"))","v":""},null,null,null,null,null,null,null,null,null,null,null,null,null,null,null,null,null,null,null,null,null,null,null,0,0,{"$f":"IF(AND(AG127=1,AH127=0),1,0)","v":0}]
[null,3,null,null,null,null,null,null,"",null,null,null,null,null,null,null,null,null,null,null,null,null,null,null,null,null,null,null,null,null,null,null,0,0,0]
[null,4,null,null,null,null,null,null,"",null,null,null,null,null,null,null,null,null,null,null,null,null,null,null,null,null,null,null,null,null,null,null,0,0,0]
[null,5,null,null,null,null,null,null,"",null,null,null,null,null,null,null,null,null,null,null,null,null,null,null,null,null,null,null,null,null,null,null,0,0,0]
[null,6,null,null,null,null,null,null,"",null,null,null,null,null,null,null,null,null,null,null,null,null,null,null,null,null,null,null,null,null,null,null,0,0,0]
[null,7,null,null,null,null,null,null,"",null,null,null,null,null,null,null,null,null,null,null,null,null,null,null,null,null,null,null,null,null,null,null,0,0,0]
[null,8,null,null,null,null,null,null,"",null,null,null,null,null,null,null,null,null,null,null,null,null,null,null,null,null,null,null,null,null,null,null,0,0,0]
[null,9,null,null,null,null,null,null,"",null,null,null,null,null,null,null,null,null,null,null,null,null,null,null,null,null,null,null,null,null,null,null,0,0,0]
[null,10,null,null,null,null,null,null,"",null,null,null,null,null,null,null,null,null,null,null,null,null,null,null,null,null,null,null,null,null,null,null,0,0,0]
[null,11,null,null,null,null,null,null,"",null,null,null,null,null,null,null,null,null,null,null,null,null,null,null,null,null,null,null,null,null,null,null,0,0,0]
[null,12,null,null,null,null,null,null,"",null,null,null,null,null,null,null,null,null,null,null,null,null,null,null,null,null,null,null,null,null,null,null,0,0,0]
[null,13,null,null,null,null,null,null,"",null,null,null,null,null,null,null,null,null,null,null,null,null,null,null,null,null,null,null,null,null,null,null,0,0,0]
[null,14,null,null,null,null,null,null,"",null,null,null,null,null,null,null,null,null,null,null,null,null,null,null,null,null,null,null,null,null,null,null,0,0,0]
[null,15,null,null,null,null,null,null,"",null,null,null,null,null,null,null,null,null,null,null,null,null,null,null,null,null,null,null,null,null,null,null,0,0,0]
[null,16,null,null,null,null,null,null,"",null,null,null,null,null,null,null,null,null,null,null,null,null,null,null,null,null,null,null,null,null,null,null,0,0,0]
[null,17,null,null,null,null,null,null,"",null,null,null,null,null,null,null,null,null,null,null,null,null,null,null,null,null,null,null,null,null,null,null,0,0,0]
[null,18,null,null,null,null,null,null,"",null,null,null,null,null,null,null,null,null,null,null,null,null,null,null,null,null,null,null,null,null,null,null,0,0,0]
[null,19,null,null,null,null,null,null,"",null,null,null,null,null,null,null,null,null,null,null,null,null,null,null,null,null,null,null,null,null,null,null,0,0,0]
[null,20,null,null,null,null,null,null,"",null,null,null,null,null,null,null,null,null,null,null,null,null,null,null,null,null,null,null,null,null,null,null,0,0,0]
[null,21,null,null,null,null,null,null,"",null,null,null,null,null,null,null,null,null,null,null,null,null,null,null,null,null,null,null,null,null,null,null,0,0,0]
[null,22,null,null,null,null,null,null,"",null,null,null,null,null,null,null,null,null,null,null,null,null,null,null,null,null,null,null,null,null,null,null,0,0,0]
[null,23,null,null,null,null,null,null,"",null,null,null,null,null,null,null,null,null,null,null,null,null,null,null,null,null,null,null,null,null,null,null,0,0,0]
[null,24,null,null,null,null,null,null,"",null,null,null,null,null,null,null,null,null,null,null,null,null,null,null,null,null,null,null,null,null,null,null,0,0,0]
[null,25,null,null,null,null,null,null,"",null,null,null,null,null,null,null,null,null,null,null,null,null,null,null,null,null,null,null,null,null,null,null,0,0,0]
[null,26,null,null,null,null,null,null,"",null,null,null,null,null,null,null,null,null,null,null,null,null,null,null,null,null,null,null,null,null,null,null,0,0,0]
[null,27,null,null,null,null,null,null,"",null,null,null,null,null,null,null,null,null,null,null,null,null,null,null,null,null,null,null,null,null,null,null,0,0,0]
[null,28,null,null,null,null,null,null,"",null,null,null,null,null,null,null,null,null,null,null,null,null,null,null,null,null,null,null,null,null,null,null,0,0,0]
[null,29,null,null,null,null,null,null,"",null,null,null,null,null,null,null,null,null,null,null,null,null,null,null,null,null,null,null,null,null,null,null,0,0,0]
[null,30,null,null,null,null,null,null,"",null,null,null,null,null,null,null,null,null,null,null,null,null,null,null,null,null,null,null,null,null,null,null,0,0,0]
[null,31,null,null,null,null,null,null,"",null,null,null,null,null,null,null,null,null,null,null,null,null,null,null,null,null,null,null,null,null,null,null,0,0,0]
[null,32,null,null,null,null,null,null,"",null,null,null,null,null,null,null,null,null,null,null,null,null,null,null,null,null,null,null,null,null,null,null,0,0,0]
[null,33,null,null,null,null,null,null,"",null,null,null,null,null,null,null,null,null,null,null,null,null,null,null,null,null,null,null,null,null,null,null,{"$f":"IF(D158>0,1,0)","v":0},{"$f":"IF(D158=\"Other\",1,0)","v":0},0]
[null,34,null,null,null,null,null,null,"",null,null,null,null,null,null,null,null,null,null,null,null,null,null,null,null,null,null,null,null,null,null,null,0,0,0]
[null,35,null,null,null,null,null,null,"",null,null,null,null,null,null,null,null,null,null,null,null,null,null,null,null,null,null,null,null,null,null,null,0,0,0]
[null,36,null,null,null,null,null,null,"",null,null,null,null,null,null,null,null,null,null,null,null,null,null,null,null,null,null,null,null,null,null,null,0,0,0]
[null,37,null,null,null,null,null,null,"",null,null,null,null,null,null,null,null,null,null,null,null,null,null,null,null,null,null,null,null,null,null,null,0,0,0]
[null,38,null,null,null,null,null,null,"",null,null,null,null,null,null,null,null,null,null,null,null,null,null,null,null,null,null,null,null,null,null,null,0,0,0]
[null,39,null,null,null,null,null,null,"",null,null,null,null,null,null,null,null,null,null,null,null,null,null,null,null,null,null,null,null,null,null,null,0,0,0]
[null,40,null,null,null,null,null,null,"",null,null,null,null,null,null,null,null,null,null,null,null,null,null,null,null,null,null,null,null,null,null,null,0,0,0]
[null,41,null,null,null,null,null,null,"",null,null,null,null,null,null,null,null,null,null,null,null,null,null,null,null,null,null,null,null,null,null,null,0,0,0]
[null,42,null,null,null,null,null,null,"",null,null,null,null,null,null,null,null,null,null,null,null,null,null,null,null,null,null,null,null,null,null,null,0,0,0]
[null,43,null,null,null,null,null,null,"",null,null,null,null,null,null,null,null,null,null,null,null,null,null,null,null,null,null,null,null,null,null,null,0,0,0]
[null,44,null,null,null,null,null,null,"",null,null,null,null,null,null,null,null,null,null,null,null,null,null,null,null,null,null,null,null,null,null,null,0,0,0]
[null,45,null,null,null,null,null,null,"",null,null,null,null,null,null,null,null,null,null,null,null,null,null,null,null,null,null,null,null,null,null,null,0,0,0]
[null,46,null,null,null,null,null,null,"",null,null,null,null,null,null,null,null,null,null,null,null,null,null,null,null,null,null,null,null,null,null,null,0,0,0]
[null,47,null,null,null,null,null,null,"",null,null,null,null,null,null,null,null,null,null,null,null,null,null,null,null,null,null,null,null,null,null,null,0,0,0]
[null,48,null,null,null,null,null,null,"",null,null,null,null,null,null,null,null,null,null,null,null,null,null,null,null,null,null,null,null,null,null,null,0,0,0]
[null,49,null,null,null,null,null,null,"",null,null,null,null,null,null,null,null,null,null,null,null,null,null,null,null,null,null,null,null,null,null,null,0,0,0]
[null,50,null,null,null,null,null,null,"",null,null,null,null,null,null,null,null,null,null,null,null,null,null,null,null,null,null,null,null,null,null,null,0,0,0]
[null,51,null,null,null,null,null,null,"",null,null,null,null,null,null,null,null,null,null,null,null,null,null,null,null,null,null,null,null,null,null,null,0,0,0]
[null,52,null,null,null,null,null,null,"",null,null,null,null,null,null,null,null,null,null,null,null,null,null,null,null,null,null,null,null,null,null,null,0,0,0]
[null,53,null,null,null,null,null,null,"",null,null,null,null,null,null,null,null,null,null,null,null,null,null,null,null,null,null,null,null,null,null,null,0,0,0]
[null,54,null,null,null,null,null,null,"",null,null,null,null,null,null,null,null,null,null,null,null,null,null,null,null,null,null,null,null,null,null,null,0,0,0]
[null,55,null,null,null,null,null,null,"",null,null,null,null,null,null,null,null,null,null,null,null,null,null,null,null,null,null,null,null,null,null,null,0,0,0]
[null,56,null,null,null,null,null,null,"",null,null,null,null,null,null,null,null,null,null,null,null,null,null,null,null,null,null,null,null,null,null,null,0,0,0]
[null,57,null,null,null,null,null,null,"",null,null,null,null,null,null,null,null,null,null,null,null,null,null,null,null,null,null,null,null,null,null,null,0,0,0]
[null,58,null,null,null,null,null,null,"",null,null,null,null,null,null,null,null,null,null,null,null,null,null,null,null,null,null,null,null,null,null,null,0,0,0]
[null,59,null,null,null,null,null,null,"",null,null,null,null,null,null,null,null,null,null,null,null,null,null,null,null,null,null,null,null,null,null,null,0,0,0]
[null,60,null,null,null,null,null,null,"",null,null,null,null,null,null,null,null,null,null,null,null,null,null,null,null,null,null,null,null,null,null,null,0,0,0]
[null,61,null,null,null,null,null,null,"",null,null,null,null,null,null,null,null,null,null,null,null,null,null,null,null,null,null,null,null,null,null,null,0,0,0]
[null,62,null,null,null,null,null,null,"",null,null,null,null,null,null,null,null,null,null,null,null,null,null,null,null,null,null,null,null,null,null,null,0,0,0]
[null,63,null,null,null,null,null,null,"",null,null,null,null,null,null,null,null,null,null,null,null,null,null,null,null,null,null,null,null,null,null,null,0,0,0]
[null,64,null,null,null,null,null,null,"",null,null,null,null,null,null,null,null,null,null,null,null,null,null,null,null,null,null,null,null,null,null,null,0,0,0]
[null,65,null,null,null,null,null,null,"",null,null,null,null,null,null,null,null,null,null,null,null,null,null,null,null,null,null,null,null,null,null,null,{"$f":"IF(D190>0,1,0)","v":0},{"$f":"IF(D190=\"Other\",1,0)","v":0},0]
[null,66,null,null,null,null,null,null,{"$f":"IF(H191=\"Yes\",\"Kindly provide further details under Regulatory History\",IF(H191=\"No\",\"Not applicable\",\"\"))","v":""},null,null,null,null,null,null,null,null,null,null,null,null,null,null,null,null,null,null,null,null,null,null,null,0,0,{"$f":"IF(AND(AG191=1,AH191=0),1,0)","v":0}]
[null,67,null,null,null,null,null,null,"",null,null,null,null,null,null,null,null,null,null,null,null,null,null,null,null,null,null,null,null,null,null,null,0,0,0]
[null,68,null,null,null,null,null,null,"",null,null,null,null,null,null,null,null,null,null,null,null,null,null,null,null,null,null,null,null,null,null,null,0,0,0]
[null,69,null,null,null,null,null,null,"",null,null,null,null,null,null,null,null,null,null,null,null,null,null,null,null,null,null,null,null,null,null,null,0,0,0]
[null,70,null,null,null,null,null,null,"",null,null,null,null,null,null,null,null,null,null,null,null,null,null,null,null,null,null,null,null,null,null,null,0,0,0]
[null,71,null,null,null,null,null,null,"",null,null,null,null,null,null,null,null,null,null,null,null,null,null,null,null,null,null,null,null,null,null,null,0,0,0]
[null,72,null,null,null,null,null,null,"",null,null,null,null,null,null,null,null,null,null,null,null,null,null,null,null,null,null,null,null,null,null,null,0,0,0]
[null,73,null,null,null,null,null,null,"",null,null,null,null,null,null,null,null,null,null,null,null,null,null,null,null,null,null,null,null,null,null,null,0,0,0]
[null,74,null,null,null,null,null,null,"",null,null,null,null,null,null,null,null,null,null,null,null,null,null,null,null,null,null,null,null,null,null,null,0,0,0]
[null,75,null,null,null,null,null,null,"",null,null,null,null,null,null,null,null,null,null,null,null,null,null,null,null,null,null,null,null,null,null,null,0,0,0]
[null,76,null,null,null,null,null,null,"",null,null,null,null,null,null,null,null,null,null,null,null,null,null,null,null,null,null,null,null,null,null,null,0,0,0]
[null,77,null,null,null,null,null,null,"",null,null,null,null,null,null,null,null,null,null,null,null,null,null,null,null,null,null,null,null,null,null,null,0,0,0]
[null,78,null,null,null,null,null,null,"",null,null,null,null,null,null,null,null,null,null,null,null,null,null,null,null,null,null,null,null,null,null,null,0,0,0]
[null,79,null,null,null,null,null,null,"",null,null,null,null,null,null,null,null,null,null,null,null,null,null,null,null,null,null,null,null,null,null,null,0,0,0]
[null,80,null,null,null,null,null,null,"",null,null,null,null,null,null,null,null,null,null,null,null,null,null,null,null,null,null,null,null,null,null,null,0,0,0]
[null,81,null,null,null,null,null,null,"",null,null,null,null,null,null,null,null,null,null,null,null,null,null,null,null,null,null,null,null,null,null,null,0,0,0]
[null,82,null,null,null,null,null,null,"",null,null,null,null,null,null,null,null,null,null,null,null,null,null,null,null,null,null,null,null,null,null,null,0,0,0]
[null,83,null,null,null,null,null,null,"",null,null,null,null,null,null,null,null,null,null,null,null,null,null,null,null,null,null,null,null,null,null,null,0,0,0]
[null,84,null,null,null,null,null,null,"",null,null,null,null,null,null,null,null,null,null,null,null,null,null,null,null,null,null,null,null,null,null,null,0,0,0]
[null,85,null,null,null,null,null,null,"",null,null,null,null,null,null,null,null,null,null,null,null,null,null,null,null,null,null,null,null,null,null,null,0,0,0]
[null,86,null,null,null,null,null,null,"",null,null,null,null,null,null,null,null,null,null,null,null,null,null,null,null,null,null,null,null,null,null,null,0,0,0]
[null,87,null,null,null,null,null,null,"",null,null,null,null,null,null,null,null,null,null,null,null,null,null,null,null,null,null,null,null,null,null,null,0,0,0]
[null,88,null,null,null,null,null,null,"",null,null,null,null,null,null,null,null,null,null,null,null,null,null,null,null,null,null,null,null,null,null,null,0,0,0]
[null,89,null,null,null,null,null,null,"",null,null,null,null,null,null,null,null,null,null,null,null,null,null,null,null,null,null,null,null,null,null,null,0,0,0]
[null,90,null,null,null,null,null,null,"",null,null,null,null,null,null,null,null,null,null,null,null,null,null,null,null,null,null,null,null,null,null,null,0,0,0]
[null,91,null,null,null,null,null,null,"",null,null,null,null,null,null,null,null,null,null,null,null,null,null,null,null,null,null,null,null,null,null,null,0,0,0]
[null,92,null,null,null,null,null,null,"",null,null,null,null,null,null,null,null,null,null,null,null,null,null,null,null,null,null,null,null,null,null,null,0,0,0]
[null,93,null,null,null,null,null,null,"",null,null,null,null,null,null,null,null,null,null,null,null,null,null,null,null,null,null,null,null,null,null,null,0,0,0]
[null,94,null,null,null,null,null,null,"",null,null,null,null,null,null,null,null,null,null,null,null,null,null,null,null,null,null,null,null,null,null,null,0,0,0]
[null,95,null,null,null,null,null,null,"",null,null,null,null,null,null,null,null,null,null,null,null,null,null,null,null,null,null,null,null,null,null,null,0,0,0]
[null,96,null,null,null,null,null,null,"",null,null,null,null,null,null,null,null,null,null,null,null,null,null,null,null,null,null,null,null,null,null,null,0,0,0]
[null,97,null,null,null,null,null,null,"",null,null,null,null,null,null,null,null,null,null,null,null,null,null,null,null,null,null,null,null,null,null,null,0,0,0]
[null,98,null,null,null,null,null,null,"",null,null,null,null,null,null,null,null,null,null,null,null,null,null,null,null,null,null,null,null,null,null,null,0,0,0]
[null,99,null,null,null,null,null,null,"",null,null,null,null,null,null,null,null,null,null,null,null,null,null,null,null,null,null,null,null,null,null,null,0,0,0]
[null,100,null,null,null,null,null,null,"",null,null,null,null,null,null,null,null,null,null,null,null,null,null,null,null,null,null,null,null,null,null,null,0,0,0]
[]
[]
[]
[null,"GROUP STRUCTURE - UNITHOLDERS"]
[null,"Kindly provide the details of the Qualifying Entity's holding in other Group Entity/ies. Kindly insert a new row for every Group Entity by clicking on the icon."]
[]
[null,"ll-4","ENTITY NAME AS IDENTIFIED ll-7","PERSON TYPE","IF ENTITY, FORM?","IF OTHER, \nKINDLY SPECIFY","INDIVIDUAL\nNAME AND SURNAME","DOCUMENT TYPE","DOCUMENT NUMBER",null,"COUNTRY OF REGISTRATION ","UNITHOLDING IN GROUP ENTITY BY QUALIFYING ENTITY\nPERCENTAGE "]
[null,null,null,null,null,null,null,null,null,null,null,"HOLDING","CONTROL"]
[null,1,null,null,null,null,null,null,null,null,null,null,null,null,null,null,null,null,null,null,null,null,null,null,null,null,null,null,null,null,null,null,{"$f":"IF(E234>0,1,0)","v":0},{"$f":"IF(E234=\"Other\",1,0)","v":0},{"$f":"IF(AND(AG234=1,AH234=0),1,0)","v":0}]
[null,2,null,null,null,null,null,null,null,null,null,null,null,null,null,null,null,null,null,null,null,null,null,null,null,null,null,null,null,null,null,null,0,0,{"$f":"IF(AND(AG235=1,AH235=0),1,0)","v":0}]
[null,3,null,null,null,null,null,null,null,null,null,null,null,null,null,null,null,null,null,null,null,null,null,null,null,null,null,null,null,null,null,null,0,0,0]
[null,4,null,null,null,null,null,null,null,null,null,null,null,null,null,null,null,null,null,null,null,null,null,null,null,null,null,null,null,null,null,null,0,0,0]
[null,5,null,null,null,null,null,null,null,null,null,null,null,null,null,null,null,null,null,null,null,null,null,null,null,null,null,null,null,null,null,null,0,0,0]
[null,6,null,null,null,null,null,null,null,null,null,null,null,null,null,null,null,null,null,null,null,null,null,null,null,null,null,null,null,null,null,null,0,0,0]
[null,7,null,null,null,null,null,null,null,null,null,null,null,null,null,null,null,null,null,null,null,null,null,null,null,null,null,null,null,null,null,null,0,0,0]
[null,8,null,null,null,null,null,null,null,null,null,null,null,null,null,null,null,null,null,null,null,null,null,null,null,null,null,null,null,null,null,null,0,0,0]
[null,9,null,null,null,null,null,null,null,null,null,null,null,null,null,null,null,null,null,null,null,null,null,null,null,null,null,null,null,null,null,null,0,0,0]
[null,10,null,null,null,null,null,null,null,null,null,null,null,null,null,null,null,null,null,null,null,null,null,null,null,null,null,null,null,null,null,null,0,0,0]
[null,11,null,null,null,null,null,null,null,null,null,null,null,null,null,null,null,null,null,null,null,null,null,null,null,null,null,null,null,null,null,null,0,0,0]
[null,12,null,null,null,null,null,null,null,null,null,null,null,null,null,null,null,null,null,null,null,null,null,null,null,null,null,null,null,null,null,null,0,0,0]
[null,13,null,null,null,null,null,null,null,null,null,null,null,null,null,null,null,null,null,null,null,null,null,null,null,null,null,null,null,null,null,null,0,0,0]
[null,14,null,null,null,null,null,null,null,null,null,null,null,null,null,null,null,null,null,null,null,null,null,null,null,null,null,null,null,null,null,null,0,0,0]
[null,15,null,null,null,null,null,null,null,null,null,null,null,null,null,null,null,null,null,null,null,null,null,null,null,null,null,null,null,null,null,null,0,0,0]
[null,16,null,null,null,null,null,null,null,null,null,null,null,null,null,null,null,null,null,null,null,null,null,null,null,null,null,null,null,null,null,null,0,0,0]
[null,17,null,null,null,null,null,null,null,null,null,null,null,null,null,null,null,null,null,null,null,null,null,null,null,null,null,null,null,null,null,null,0,0,0]
[null,18,null,null,null,null,null,null,null,null,null,null,null,null,null,null,null,null,null,null,null,null,null,null,null,null,null,null,null,null,null,null,0,0,0]
[null,19,null,null,null,null,null,null,null,null,null,null,null,null,null,null,null,null,null,null,null,null,null,null,null,null,null,null,null,null,null,null,0,0,0]
[null,20,null,null,null,null,null,null,null,null,null,null,null,null,null,null,null,null,null,null,null,null,null,null,null,null,null,null,null,null,null,null,0,0,0]
[null,21,null,null,null,null,null,null,null,null,null,null,null,null,null,null,null,null,null,null,null,null,null,null,null,null,null,null,null,null,null,null,0,0,0]
[null,22,null,null,null,null,null,null,null,null,null,null,null,null,null,null,null,null,null,null,null,null,null,null,null,null,null,null,null,null,null,null,0,0,0]
[null,23,null,null,null,null,null,null,null,null,null,null,null,null,null,null,null,null,null,null,null,null,null,null,null,null,null,null,null,null,null,null,0,0,0]
[null,24,null,null,null,null,null,null,null,null,null,null,null,null,null,null,null,null,null,null,null,null,null,null,null,null,null,null,null,null,null,null,0,0,0]
[null,25,null,null,null,null,null,null,null,null,null,null,null,null,null,null,null,null,null,null,null,null,null,null,null,null,null,null,null,null,null,null,0,0,0]
[null,26,null,null,null,null,null,null,null,null,null,null,null,null,null,null,null,null,null,null,null,null,null,null,null,null,null,null,null,null,null,null,0,0,0]
[null,27,null,null,null,null,null,null,null,null,null,null,null,null,null,null,null,null,null,null,null,null,null,null,null,null,null,null,null,null,null,null,0,0,0]
[null,28,null,null,null,null,null,null,null,null,null,null,null,null,null,null,null,null,null,null,null,null,null,null,null,null,null,null,null,null,null,null,0,0,0]
[null,29,null,null,null,null,null,null,null,null,null,null,null,null,null,null,null,null,null,null,null,null,null,null,null,null,null,null,null,null,null,null,0,0,0]
[null,30,null,null,null,null,null,null,null,null,null,null,null,null,null,null,null,null,null,null,null,null,null,null,null,null,null,null,null,null,null,null,0,0,0]
[null,31,null,null,null,null,null,null,null,null,null,null,null,null,null,null,null,null,null,null,null,null,null,null,null,null,null,null,null,null,null,null,0,0,0]
[null,32,null,null,null,null,null,null,null,null,null,null,null,null,null,null,null,null,null,null,null,null,null,null,null,null,null,null,null,null,null,null,0,0,0]
[null,33,null,null,null,null,null,null,null,null,null,null,null,null,null,null,null,null,null,null,null,null,null,null,null,null,null,null,null,null,null,null,{"$f":"IF(E266>0,1,0)","v":0},{"$f":"IF(E266=\"Other\",1,0)","v":0},0]
[null,34,null,null,null,null,null,null,null,null,null,null,null,null,null,null,null,null,null,null,null,null,null,null,null,null,null,null,null,null,null,null,0,0,0]
[null,35,null,null,null,null,null,null,null,null,null,null,null,null,null,null,null,null,null,null,null,null,null,null,null,null,null,null,null,null,null,null,0,0,0]
[null,36,null,null,null,null,null,null,null,null,null,null,null,null,null,null,null,null,null,null,null,null,null,null,null,null,null,null,null,null,null,null,0,0,0]
[null,37,null,null,null,null,null,null,null,null,null,null,null,null,null,null,null,null,null,null,null,null,null,null,null,null,null,null,null,null,null,null,0,0,0]
[null,38,null,null,null,null,null,null,null,null,null,null,null,null,null,null,null,null,null,null,null,null,null,null,null,null,null,null,null,null,null,null,0,0,0]
[null,39,null,null,null,null,null,null,null,null,null,null,null,null,null,null,null,null,null,null,null,null,null,null,null,null,null,null,null,null,null,null,0,0,0]
[null,40,null,null,null,null,null,null,null,null,null,null,null,null,null,null,null,null,null,null,null,null,null,null,null,null,null,null,null,null,null,null,0,0,0]
[null,41,null,null,null,null,null,null,null,null,null,null,null,null,null,null,null,null,null,null,null,null,null,null,null,null,null,null,null,null,null,null,0,0,0]
[null,42,null,null,null,null,null,null,null,null,null,null,null,null,null,null,null,null,null,null,null,null,null,null,null,null,null,null,null,null,null,null,0,0,0]
[null,43,null,null,null,null,null,null,null,null,null,null,null,null,null,null,null,null,null,null,null,null,null,null,null,null,null,null,null,null,null,null,0,0,0]
[null,44,null,null,null,null,null,null,null,null,null,null,null,null,null,null,null,null,null,null,null,null,null,null,null,null,null,null,null,null,null,null,0,0,0]
[null,45,null,null,null,null,null,null,null,null,null,null,null,null,null,null,null,null,null,null,null,null,null,null,null,null,null,null,null,null,null,null,0,0,0]
[null,46,null,null,null,null,null,null,null,null,null,null,null,null,null,null,null,null,null,null,null,null,null,null,null,null,null,null,null,null,null,null,0,0,0]
[null,47,null,null,null,null,null,null,null,null,null,null,null,null,null,null,null,null,null,null,null,null,null,null,null,null,null,null,null,null,null,null,0,0,0]
[null,48,null,null,null,null,null,null,null,null,null,null,null,null,null,null,null,null,null,null,null,null,null,null,null,null,null,null,null,null,null,null,0,0,0]
[null,49,null,null,null,null,null,null,null,null,null,null,null,null,null,null,null,null,null,null,null,null,null,null,null,null,null,null,null,null,null,null,0,0,0]
[null,50,null,null,null,null,null,null,null,null,null,null,null,null,null,null,null,null,null,null,null,null,null,null,null,null,null,null,null,null,null,null,0,0,0]
[null,51,null,null,null,null,null,null,null,null,null,null,null,null,null,null,null,null,null,null,null,null,null,null,null,null,null,null,null,null,null,null,0,0,0]
[null,52,null,null,null,null,null,null,null,null,null,null,null,null,null,null,null,null,null,null,null,null,null,null,null,null,null,null,null,null,null,null,0,0,0]
[null,53,null,null,null,null,null,null,null,null,null,null,null,null,null,null,null,null,null,null,null,null,null,null,null,null,null,null,null,null,null,null,0,0,0]
[null,54,null,null,null,null,null,null,null,null,null,null,null,null,null,null,null,null,null,null,null,null,null,null,null,null,null,null,null,null,null,null,0,0,0]
[null,55,null,null,null,null,null,null,null,null,null,null,null,null,null,null,null,null,null,null,null,null,null,null,null,null,null,null,null,null,null,null,0,0,0]
[null,56,null,null,null,null,null,null,null,null,null,null,null,null,null,null,null,null,null,null,null,null,null,null,null,null,null,null,null,null,null,null,0,0,0]
[null,57,null,null,null,null,null,null,null,null,null,null,null,null,null,null,null,null,null,null,null,null,null,null,null,null,null,null,null,null,null,null,0,0,0]
[null,58,null,null,null,null,null,null,null,null,null,null,null,null,null,null,null,null,null,null,null,null,null,null,null,null,null,null,null,null,null,null,0,0,0]
[null,59,null,null,null,null,null,null,null,null,null,null,null,null,null,null,null,null,null,null,null,null,null,null,null,null,null,null,null,null,null,null,0,0,0]
[null,60,null,null,null,null,null,null,null,null,null,null,null,null,null,null,null,null,null,null,null,null,null,null,null,null,null,null,null,null,null,null,0,0,0]
[null,61,null,null,null,null,null,null,null,null,null,null,null,null,null,null,null,null,null,null,null,null,null,null,null,null,null,null,null,null,null,null,0,0,0]
[null,62,null,null,null,null,null,null,null,null,null,null,null,null,null,null,null,null,null,null,null,null,null,null,null,null,null,null,null,null,null,null,0,0,0]
[null,63,null,null,null,null,null,null,null,null,null,null,null,null,null,null,null,null,null,null,null,null,null,null,null,null,null,null,null,null,null,null,0,0,0]
[null,64,null,null,null,null,null,null,null,null,null,null,null,null,null,null,null,null,null,null,null,null,null,null,null,null,null,null,null,null,null,null,0,0,0]
[null,65,null,null,null,null,null,null,null,null,null,null,null,null,null,null,null,null,null,null,null,null,null,null,null,null,null,null,null,null,null,null,{"$f":"IF(E298>0,1,0)","v":0},{"$f":"IF(E298=\"Other\",1,0)","v":0},0]
[null,66,null,null,null,null,null,null,null,null,null,null,null,null,null,null,null,null,null,null,null,null,null,null,null,null,null,null,null,null,null,null,0,0,{"$f":"IF(AND(AG299=1,AH299=0),1,0)","v":0}]
[null,67,null,null,null,null,null,null,null,null,null,null,null,null,null,null,null,null,null,null,null,null,null,null,null,null,null,null,null,null,null,null,0,0,0]
[null,68,null,null,null,null,null,null,null,null,null,null,null,null,null,null,null,null,null,null,null,null,null,null,null,null,null,null,null,null,null,null,0,0,0]
[null,69,null,null,null,null,null,null,null,null,null,null,null,null,null,null,null,null,null,null,null,null,null,null,null,null,null,null,null,null,null,null,0,0,0]
[null,70,null,null,null,null,null,null,null,null,null,null,null,null,null,null,null,null,null,null,null,null,null,null,null,null,null,null,null,null,null,null,0,0,0]
[null,71,null,null,null,null,null,null,null,null,null,null,null,null,null,null,null,null,null,null,null,null,null,null,null,null,null,null,null,null,null,null,0,0,0]
[null,72,null,null,null,null,null,null,null,null,null,null,null,null,null,null,null,null,null,null,null,null,null,null,null,null,null,null,null,null,null,null,0,0,0]
[null,73,null,null,null,null,null,null,null,null,null,null,null,null,null,null,null,null,null,null,null,null,null,null,null,null,null,null,null,null,null,null,0,0,0]
[null,74,null,null,null,null,null,null,null,null,null,null,null,null,null,null,null,null,null,null,null,null,null,null,null,null,null,null,null,null,null,null,0,0,0]
[null,75,null,null,null,null,null,null,null,null,null,null,null,null,null,null,null,null,null,null,null,null,null,null,null,null,null,null,null,null,null,null,0,0,0]
[null,76,null,null,null,null,null,null,null,null,null,null,null,null,null,null,null,null,null,null,null,null,null,null,null,null,null,null,null,null,null,null,0,0,0]
[null,77,null,null,null,null,null,null,null,null,null,null,null,null,null,null,null,null,null,null,null,null,null,null,null,null,null,null,null,null,null,null,0,0,0]
[null,78,null,null,null,null,null,null,null,null,null,null,null,null,null,null,null,null,null,null,null,null,null,null,null,null,null,null,null,null,null,null,0,0,0]
[null,79,null,null,null,null,null,null,null,null,null,null,null,null,null,null,null,null,null,null,null,null,null,null,null,null,null,null,null,null,null,null,0,0,0]
[null,80,null,null,null,null,null,null,null,null,null,null,null,null,null,null,null,null,null,null,null,null,null,null,null,null,null,null,null,null,null,null,0,0,0]
[null,81,null,null,null,null,null,null,null,null,null,null,null,null,null,null,null,null,null,null,null,null,null,null,null,null,null,null,null,null,null,null,0,0,0]
[null,82,null,null,null,null,null,null,null,null,null,null,null,null,null,null,null,null,null,null,null,null,null,null,null,null,null,null,null,null,null,null,0,0,0]
[null,83,null,null,null,null,null,null,null,null,null,null,null,null,null,null,null,null,null,null,null,null,null,null,null,null,null,null,null,null,null,null,0,0,0]
[null,84,null,null,null,null,null,null,null,null,null,null,null,null,null,null,null,null,null,null,null,null,null,null,null,null,null,null,null,null,null,null,0,0,0]
[null,85,null,null,null,null,null,null,null,null,null,null,null,null,null,null,null,null,null,null,null,null,null,null,null,null,null,null,null,null,null,null,0,0,0]
[null,86,null,null,null,null,null,null,null,null,null,null,null,null,null,null,null,null,null,null,null,null,null,null,null,null,null,null,null,null,null,null,0,0,0]
[null,87,null,null,null,null,null,null,null,null,null,null,null,null,null,null,null,null,null,null,null,null,null,null,null,null,null,null,null,null,null,null,0,0,0]
[null,88,null,null,null,null,null,null,null,null,null,null,null,null,null,null,null,null,null,null,null,null,null,null,null,null,null,null,null,null,null,null,0,0,0]
[null,89,null,null,null,null,null,null,null,null,null,null,null,null,null,null,null,null,null,null,null,null,null,null,null,null,null,null,null,null,null,null,0,0,0]
[null,90,null,null,null,null,null,null,null,null,null,null,null,null,null,null,null,null,null,null,null,null,null,null,null,null,null,null,null,null,null,null,0,0,0]
[null,91,null,null,null,null,null,null,null,null,null,null,null,null,null,null,null,null,null,null,null,null,null,null,null,null,null,null,null,null,null,null,0,0,0]
[null,92,null,null,null,null,null,null,null,null,null,null,null,null,null,null,null,null,null,null,null,null,null,null,null,null,null,null,null,null,null,null,0,0,0]
[null,93,null,null,null,null,null,null,null,null,null,null,null,null,null,null,null,null,null,null,null,null,null,null,null,null,null,null,null,null,null,null,0,0,0]
[null,94,null,null,null,null,null,null,null,null,null,null,null,null,null,null,null,null,null,null,null,null,null,null,null,null,null,null,null,null,null,null,0,0,0]
[null,95,null,null,null,null,null,null,null,null,null,null,null,null,null,null,null,null,null,null,null,null,null,null,null,null,null,null,null,null,null,null,0,0,0]
[null,96,null,null,null,null,null,null,null,null,null,null,null,null,null,null,null,null,null,null,null,null,null,null,null,null,null,null,null,null,null,null,0,0,0]
[null,97,null,null,null,null,null,null,null,null,null,null,null,null,null,null,null,null,null,null,null,null,null,null,null,null,null,null,null,null,null,null,0,0,0]
[null,98,null,null,null,null,null,null,null,null,null,null,null,null,null,null,null,null,null,null,null,null,null,null,null,null,null,null,null,null,null,null,0,0,0]
[null,99,null,null,null,null,null,null,null,null,null,null,null,null,null,null,null,null,null,null,null,null,null,null,null,null,null,null,null,null,null,null,0,0,0]
[null,100,null,null,null,null,null,null,null,null,null,null,null,null,null,null,null,null,null,null,null,null,null,null,null,null,null,null,null,null,null,null,0,0,0]
[]
[]
[null,"FINANCIAL AND NON-FINANCIAL INTERESTS OR RELATIONSHIPS"]
[null,"Does the Qualifying Entity have financial, non-financial interests and/or relationships with: "]
[null,null,null,null,null,null,"IF \"YES\": KINDLY PROVIDE FURTHER DETAILS",null,null,null,null,"HAS EVIDENCE BEEN ATTACHED?","KINDLY INDICATE PDF NAME "]
[null,"ll-5","ANY OTHER CURRENT UNITHOLDER/S OF THE APPLICANT ",null,null,null,null,null,null,null,null,null,null,null,null,null,{"$f":"IF(F339=\"Yes\",1,0)","v":0}]
[null,"ll-6","ANY ADMINISTRATOR OF THE APPLICANT",null,null,null,null,null,null,null,null,null,null,null,null,null,{"$f":"IF(F340=\"Yes\",1,0)","v":0}]
[null,"ll-7","THE APPLICANT",null,null,null,null,null,null,null,null,null,null,null,null,null,{"$f":"IF(F341=\"Yes\",1,0)","v":0}]
[null,"ll-8","ANY PERSON ENTITLED TO EXERCISE VOTING RIGHTS OF THE APPLICANT",null,null,null,null,null,null,null,null,null,null,null,null,null,{"$f":"IF(F342=\"Yes\",1,0)","v":0}]
[null,"ll-9","ANY OTHER INTEREST OR ACTIVITIES OF THE QUALIFYING ENTITY THAT MAY BE IN CONFLICT WITH THE APPLICANT AND SPECIFY THE POSSIBLE SOLUTIONS TO THOSE CONFLICTS OF INTEREST",null,null,null,null,null,null,null,null,null,null,null,null,null,{"$f":"IF(F343=\"Yes\",1,0)","v":0}]
[]
[null,"OTHER INFORMATION IN RELATION TO THE QUALIFYING ENTITY AND ITS UNITHOLDERS, BENEFICIAL OWNERS AND GROUP STRUCTURE"]
[null,"Have the Qualifying Entity and/or its Unitholder/s, Beneficial Owner/s and Group Entity/ies been subject to:"]
[null,null,null,null,null,null,"IF \"YES\": KINDLY PROVIDE FURTHER DETAILS",null,null,null,null,"HAS EVIDENCE BEEN ATTACHED?","KINDLY INDICATE PDF NAME "]
[null,"ll-10","RELEVANT CRIMINAL RECORDS, CRIMINAL INVESTIGATIONS OR PROCEEDINGS, RELEVANT CIVIL AND ADMINISTRATIVE CASES, OR DISCIPLINARY ACTIONS \n(INCLUDING DISQUALIFICATION AS COMPANY DIRECTOR OR \nBANKRUPTCY, INSOLVENCY OR SIMILAR PROCEDURES)",null,null,null,null,null,null,null,null,null,null,null,null,null,{"$f":"IF(F348=\"Yes\",1,0)","v":0},{"$f":"IF(L348=\"Yes\",1,0)","v":0}]
[null,"ll-11","INVESTIGATIONS, ENFORCEMENT PROCEEDINGS, OR \nSANCTIONS BY A SUPERVISORY AUTHORITY WHICH THE QUALIFYING ENTITY HAS BEEN THE SUBJECT OF",null,null,null,null,null,null,null,null,null,null,null,null,null,{"$f":"IF(F349=\"Yes\",1,0)","v":0},{"$f":"IF(L349=\"Yes\",1,0)","v":0}]
[null,"ll-12","REFUSAL OF REGISTRATION, AUTHORISATION, MEMBERSHIP, OR LICENSE TO CARRY OUT A TRADE, BUSINESS OR PROFESSION; OR \nTHE WITHDRAWAL, REVOCATION OR TERMINATION OF REGISTRATION, AUTHORISATION, MEMBERSHIP OR LICENSE; OR EXPULSION BY A REGULATORY OR GOVERNMENT BODY",null,null,null,null,null,null,null,null,null,null,null,null,null,{"$f":"IF(F350=\"Yes\",1,0)","v":0},{"$f":"IF(L350=\"Yes\",1,0)","v":0}]
[]
[]
[null,null,"For further guidance on the the respective terms please refer to the Glossary."]
[]
[null,"V.:EQ.2019.03.14"]

{"sheet":"lll_GOVERNANCE","index":2,"n_rows":58,"n_cols":16,"rows_kept":58,"cut":false,"hidden":false,"merged":[[55,2,56,5],[57,1,57,2],[2,1,2,4],[4,1,4,13],[30,7,30,11],[31,7,31,11],[32,7,32,11],[19,7,19,11],[20,7,20,11],[21,7,21,11],[22,7,22,11],[23,7,23,11],[24,7,24,11],[8,12,9,12],[8,7,9,11],[10,7,10,11],[11,7,11,11],[12,7,12,11],[13,7,13,11],[14,7,14,11],[26,7,26,11],[27,7,27,11],[51,2,51,4],[51,6,51,10],[28,7,28,11],[29,7,29,11],[38,7,38,11],[39,7,39,11],[33,7,33,11],[34,7,34,11],[35,7,35,11],[52,2,52,4],[52,6,52,10],[49,6,49,10],[50,2,50,4],[50,6,50,10],[7,1,7,11],[44,6,44,10],[45,6,45,10],[45,2,45,4],[8,2,9,2],[8,3,9,3],[8,5,9,5],[8,6,9,6],[8,4,9,4],[25,7,25,11],[15,7,15,11],[16,7,16,11],[17,7,17,11],[18,7,18,11],[36,7,36,11],[37,7,37,11]]}
[]
[null,"MALTA FINANCIAL SERVICES AUTHORITY",null,null,null,null,null,null,null,null,null,null,{"$f":"TODAY()","v":"2019-03-14"}]
[null,"Entity Questionnaire"]
[]
[null,"GOVERNANCE SHEET"]
[]
[null,"QUALIFYING ENTITY ADMINISTRATOR/S"]
[null,"Kindly provide the details of the Qualifying Entity's Administrator/s. Kindly insert a new row for every Administrator by clicking on the icon.\nNote: Direct Qualifying Entities should also submit a PQ for every Administrator. Please note that Administrators that require a PQ need to prepare and submit a PQ prior to the Applicant submitting an application. The Applicant is required to use the PQ Reference Number generated specifically for the Administrators in the Application Form."]
[null,"lll-1","TITLE ","NAME ","MAIDEN NAME","SURNAME","EXECUTIVE OR NON-EXECUTIVE","OVERVIEW OF RESPONSIBILITIES ",null,null,null,null,"PQ REFERENCE NUMBER"]
[]
[null,1]
[null,2]
[null,3]
[null,4]
[null,5]
[null,6]
[null,7]
[null,8]
[null,9]
[null,10]
[null,11]
[null,12]
[null,13]
[null,14]
[null,15]
[null,16]
[null,17]
[null,18]
[null,19]
[null,20]
[null,21]
[null,22]
[null,23]
[null,24]
[null,25]
[null,26]
[null,27]
[null,28]
[null,29]
[null,30]
[]
[]
[null,"FINANCIAL AND NON-FINANCIAL INTERESTS OR RELATIONSHIPS"]
[null,"Does/Do the Administrator/s have financial, non-financial interests and/or relationships with: "]
[null,null,null,null,null,null,"IF \"YES\": KINDLY PROVIDE FURTHER DETAILS",null,null,null,null,"HAS EVIDENCE BEEN ATTACHED?","KINDLY INDICATE PDF NAME"]
[null,"lll-2","THE APPLICANT OR ANY ADMINISTRATOR OF THE APPLICANT",null,null,null,null,null,null,null,null,null,null,null,null,{"$f":"IF(F46=\"Yes\",1,0)","v":0}]
[]
[null,"OTHER INFORMATION IN RELATION TO THE ADMINISTRATOR/S"]
[null,"Has one or more Administrator/s been subject to:"]
[null,null,null,null,null,null,"IF \"YES\": KINDLY PROVIDE FURTHER DETAILS",null,null,null,null,"HAS EVIDENCE BEEN ATTACHED?","KINDLY INDICATE PDF NAME"]
[null,"lll-3","RELEVANT CRIMINAL RECORDS, CRIMINAL INVESTIGATIONS OR PROCEEDINGS, RELEVANT CIVIL AND ADMINISTRATIVE CASES, OR DISCIPLINARY ACTIONS \n(INCLUDING DISQUALIFICATION AS COMPANY DIRECTOR OR \nBANKRUPTCY, INSOLVENCY OR SIMILAR PROCEDURES)",null,null,null,null,null,null,null,null,null,null,null,null,{"$f":"IF(F51=\"Yes\",1,0)","v":0}]
[null,"lll-4","INVESTIGATIONS, ENFORCEMENT PROCEEDINGS, OR \nSANCTIONS BY A SUPERVISORY AUTHORITY WHICH THE QUALIFYING ENTITY HAS BEEN THE SUBJECT OF",null,null,null,null,null,null,null,null,null,null,null,null,{"$f":"IF(F52=\"Yes\",1,0)","v":0}]
[null,"lll-5","REFUSAL OF REGISTRATION, AUTHORISATION, MEMBERSHIP, OR LICENSE TO CARRY OUT A TRADE, BUSINESS OR PROFESSION; OR \nTHE WITHDRAWAL, REVOCATION OR TERMINATION OF REGISTRATION, AUTHORISATION, MEMBERSHIP OR LICENSE; OR EXPULSION BY A REGULATORY OR GOVERNMENT BODY",null,null,null,null,null,null,null,null,null,null,null,null,{"$f":"IF(F53=\"Yes\",1,0)","v":0}]
[]
[]
[null,null,"For further guidance on the the respective terms please refer to the Glossary."]
[]
[null,"V.:EQ.2019.03.14"]

{"sheet":"lV_DECLARATIONS","index":3,"n_rows":44,"n_cols":8,"rows_kept":44,"cut":false,"hidden":false,"merged":[[12,2,12,8],[17,2,17,8],[14,2,14,8],[19,2,19,8],[21,2,21,8],[15,2,15,8],[1,7,1,8],[2,1,2,5],[7,1,7,8],[9,2,9,8],[10,2,10,8],[23,2,23,8],[38,7,38,8],[27,3,27,8],[31,7,31,8],[29,2,29,8],[35,7,35,8],[41,2,42,6],[43,1,43,2],[26,2,26,8],[25,2,25,8],[28,2,28,8]]}
[]
[null,"MALTA FINANCIAL SERVICES AUTHORITY",null,null,null,null,null,{"$f":"TODAY()","v":"2019-03-14"}]
[null,"Entity Questionnaire"]
[]
[null,"DECLARATIONS SHEET"]
[]
[null,"DECLARATION"]
[null,"We, the undersigned, on behalf of the Qualifying Entity, declare that:"]
[]
[null,1,"Solvency"]
[null,1.1000000000000001,"we understand that the Applicant, which is requesting registration as a VFA Agent under the Act, shall be required to have an initial capital or capital contribution, as set out in Chapter 1 of the Rules as applicable to its registration, and which shall be fully paid up consisting of cash and cash equivalents in terms of International Accounting Standard 7, as may be amended from time to time.  "]
[]
[null,1.2,"we understand that the Applicant is to maintain the initial capital or capital contribution at all times, and that the Qualifying Entity may be required to inject further capital into the Applicant, indirectly or directly, to maintain such  initial capital or capital contribution. "]
[]
[null,2,"Qualifying Entity Questionnaire"]
[null,2.1,"we are duly authorised by the Qualifying Entity to complete and submit this Entity Questionnaire."]
[]
[null,2.2000000000000002,"to the best of our knowledge, the information provided within this Entity Questionnaire is truthful, accurate and complete and that there are no other facts relevant to this application of which the Malta Financial Services Authority (hereinafter, \"MFSA\") should be made aware."]
[]
[null,2.2999999999999998,"we shall notify the MFSA  immediately if the information provided changes in any material respect."]
[]
[null,2.4,"the MFSA is hereby being authorised to make such enquiries as it may consider necessary in connection with this Entity Questionnaire and this application."]
[]
[null,2.5,"we understand that it is a criminal offence, under Article 53(2) of the Virtual Financial Assets Act to furnish information or to make a statement which one knows to be inaccurate, false or misleading in any material respect, or to recklessly furnish information or to make a statement which is inaccurate, false or misleading in any material respect, pursuant to any of the provisions of this Act or of any regulations made or rules issued thereunder, or any condition, obligation, requirement, directive or order made or given as aforesaid."]
[]
[null,3,"Privacy Notice"]
[null,3.1,"we have read the MFSA Privacy Notice and hereby consent to the terms and conditions included therein.  In this respect, the MFSA ensures that any processing of personal data is conducted in accordance with Regulation (EU) 2016/679 (General Data Protection Regulation), the Data Protection Act (Chapter 586 of the Laws of Malta) and any other relevant European Union and national law.  The MFSA Privacy Notice is available on the MFSA webpage through the following link: http://www.mfsa.com.mt/pages/viewcontent.aspx?id=672."]
[]
[null,4,"Signatures"]
[null,null,"Kindly note the declaration should be signed by two representatives of the Qualifying Entity which include either (i) Administrator/s, (ii) judicial representative/s and/or (iii) other Duly Authorised Representative/s. "]
[]
[null,null,1]
[]
[null,null,null,"Name and Surname",null,"Position",null,"Signature                  Date:"]
[]
[null,null,2]
[]
[null,null,null,"Name and Surname",null,"Position",null,"Signature                  Date:"]
[]
[]
[]
[null,null,"For further guidance on the the respective terms please refer to the Glossary."]
[]
[null,"V.:EQ.2019.03.14"]

{"sheet":"W_LIST","index":4,"n_rows":206,"n_cols":13,"rows_kept":206,"cut":false,"hidden":true,"merged":[]}
["L_1","L_2","L_3","L_4","L_5","L_6","L_7","L_8","L_9","L_10","L_11","L_12","L_13"]
["Memorandum and Articles of Association","Registered Name ","Current ","Yes","Company ","Entity","List of NCA","Passport","Malta","Executive","Ms","Administrator","Direct Holding"]
["Trust Deed","Trade Name ","Past","No","Partnership ","Individual",null,"Identity Card","Afghanistan","Non-Executive","Miss","Other duly authorised representative","Indirect Holding"]
["Other Constitutional Document",null,null,null,"Foundation ",null,null,"Registration","Albania",null,"Mrs","Judicial Representative"]
[null,null,null,null,"Association ",null,null,null,"Algeria",null,"Mr"]
[null,null,null,null,"Trusts",null,null,null,"Andorra",null,"Dr"]
[null,null,null,null,"Other",null,null,null,"Angola",null,"Prof"]
[null,null,null,null,null,null,null,null,"Antigua and Barbuda",null,"Ing"]
[null,null,null,null,null,null,null,null,"Argentina"]
[null,null,null,null,null,null,null,null,"Armenia"]
[null,null,null,null,null,null,null,null,"Aruba"]
[null,null,null,null,null,null,null,null,"Australia"]
[null,null,null,null,null,null,null,null,"Austria"]
[null,null,null,null,null,null,null,null,"Azerbaijan"]
[null,null,null,null,null,null,null,null,"Bahamas, The"]
[null,null,null,null,null,null,null,null,"Bahrain"]
[null,null,null,null,null,null,null,null,"Bangladesh"]
[null,null,null,null,null,null,null,null,"Barbados"]
[null,null,null,null,null,null,null,null,"Belarus"]
[null,null,null,null,null,null,null,null,"Belgium"]
[null,null,null,null,null,null,null,null,"Belize"]
[null,null,null,null,null,null,null,null,"Benin"]
[null,null,null,null,null,null,null,null,"Bhutan"]
[null,null,null,null,null,null,null,null,"Bolivia"]
[null,null,null,null,null,null,null,null,"Bosnia and Herzegovina"]
[null,null,null,null,null,null,null,null,"Botswana"]
[null,null,null,null,null,null,null,null,"Brazil"]
[null,null,null,null,null,null,null,null,"Brunei "]
[null,null,null,null,null,null,null,null,"Bulgaria"]
[null,null,null,null,null,null,null,null,"Burkina Faso"]
[null,null,null,null,null,null,null,null,"Burma"]
[null,null,null,null,null,null,null,null,"Burundi"]
[null,null,null,null,null,null,null,null,"Cambodia"]
[null,null,null,null,null,null,null,null,"Cameroon"]
[null,null,null,null,null,null,null,null,"Canada"]
[null,null,null,null,null,null,null,null,"Cabo Verde"]
[null,null,null,null,null,null,null,null,"Central African Republic"]
[null,null,null,null,null,null,null,null,"Chad"]
[null,null,null,null,null,null,null,null,"Chile"]
[null,null,null,null,null,null,null,null,"China"]
[null,null,null,null,null,null,null,null,"Colombia"]
[null,null,null,null,null,null,null,null,"Comoros"]
[null,null,null,null,null,null,null,null,"Congo, Democratic Republic of the"]
[null,null,null,null,null,null,null,null,"Congo, Republic of the"]
[null,null,null,null,null,null,null,null,"Costa Rica"]
[null,null,null,null,null,null,null,null,"Cote d'Ivoire"]
[null,null,null,null,null,null,null,null,"Croatia"]
[null,null,null,null,null,null,null,null,"Cuba"]
[null,null,null,null,null,null,null,null,"Curacao"]
[null,null,null,null,null,null,null,null,"Cyprus"]
[null,null,null,null,null,null,null,null,"Czech"]
[null,null,null,null,null,null,null,null,"Denmark"]
[null,null,null,null,null,null,null,null,"Djibouti"]
[null,null,null,null,null,null,null,null,"Dominica"]
[null,null,null,null,null,null,null,null,"Dominican Republic"]
[null,null,null,null,null,null,null,null,"East Timor (see Timor-Leste)"]
[null,null,null,null,null,null,null,null,"Ecuador"]
[null,null,null,null,null,null,null,null,"Egypt"]
[null,null,null,null,null,null,null,null,"El Salvador"]
[null,null,null,null,null,null,null,null,"Equatorial Guinea"]
[null,null,null,null,null,null,null,null,"Eritrea"]
[null,null,null,null,null,null,null,null,"Estonia"]
[null,null,null,null,null,null,null,null,"Ethiopia"]
[null,null,null,null,null,null,null,null,"Fiji"]
[null,null,null,null,null,null,null,null,"Finland"]
[null,null,null,null,null,null,null,null,"France"]
[null,null,null,null,null,null,null,null,"Gabon"]
[null,null,null,null,null,null,null,null,"Gambia, The"]
[null,null,null,null,null,null,null,null,"Georgia"]
[null,null,null,null,null,null,null,null,"Germany"]
[null,null,null,null,null,null,null,null,"Ghana"]
[null,null,null,null,null,null,null,null,"Greece"]
[null,null,null,null,null,null,null,null,"Grenada"]
[null,null,null,null,null,null,null,null,"Guatemala"]
[null,null,null,null,null,null,null,null,"Guinea"]
[null,null,null,null,null,null,null,null,"Guinea-Bissau"]
[null,null,null,null,null,null,null,null,"Guyana"]
[null,null,null,null,null,null,null,null,"Haiti"]
[null,null,null,null,null,null,null,null,"Holy See"]
[null,null,null,null,null,null,null,null,"Honduras"]
[null,null,null,null,null,null,null,null,"Hong Kong"]
[null,null,null,null,null,null,null,null,"Hungary"]
[null,null,null,null,null,null,null,null,"Iceland"]
[null,null,null,null,null,null,null,null,"India"]
[null,null,null,null,null,null,null,null,"Indonesia"]
[null,null,null,null,null,null,null,null,"Iran"]
[null,null,null,null,null,null,null,null,"Iraq"]
[null,null,null,null,null,null,null,null,"Ireland"]
[null,null,null,null,null,null,null,null,"Israel"]
[null,null,null,null,null,null,null,null,"Italy"]
[null,null,null,null,null,null,null,null,"Jamaica"]
[null,null,null,null,null,null,null,null,"Japan"]
[null,null,null,null,null,null,null,null,"Jordan"]
[null,null,null,null,null,null,null,null,"Kazakhstan"]
[null,null,null,null,null,null,null,null,"Kenya"]
[null,null,null,null,null,null,null,null,"Kiribati"]
[null,null,null,null,null,null,null,null,"Korea, North"]
[null,null,null,null,null,null,null,null,"Korea, South"]
[null,null,null,null,null,null,null,null,"Kosovo"]
[null,null,null,null,null,null,null,null,"Kuwait"]
[null,null,null,null,null,null,null,null,"Kyrgyzstan"]
[null,null,null,null,null,null,null,null,"Laos"]
[null,null,null,null,null,null,null,null,"Latvia"]
[null,null,null,null,null,null,null,null,"Lebanon"]
[null,null,null,null,null,null,null,null,"Lesotho"]
[null,null,null,null,null,null,null,null,"Liberia"]
[null,null,null,null,null,null,null,null,"Libya"]
[null,null,null,null,null,null,null,null,"Liechtenstein"]
[null,null,null,null,null,null,null,null,"Lithuania"]
[null,null,null,null,null,null,null,null,"Luxembourg"]
[null,null,null,null,null,null,null,null,"Macau"]
[null,null,null,null,null,null,null,null,"Macedonia"]
[null,null,null,null,null,null,null,null,"Madagascar"]
[null,null,null,null,null,null,null,null,"Malawi"]
[null,null,null,null,null,null,null,null,"Malaysia"]
[null,null,null,null,null,null,null,null,"Maldives"]
[null,null,null,null,null,null,null,null,"Mali"]
[null,null,null,null,null,null,null,null,"Marshall Islands"]
[null,null,null,null,null,null,null,null,"Mauritania"]
[null,null,null,null,null,null,null,null,"Mauritius"]
[null,null,null,null,null,null,null,null,"Mexico"]
[null,null,null,null,null,null,null,null,"Micronesia"]
[null,null,null,null,null,null,null,null,"Moldova"]
[null,null,null,null,null,null,null,null,"Monaco"]
[null,null,null,null,null,null,null,null,"Mongolia"]
[null,null,null,null,null,null,null,null,"Montenegro"]
[null,null,null,null,null,null,null,null,"Morocco"]
[null,null,null,null,null,null,null,null,"Mozambique"]
[null,null,null,null,null,null,null,null,"Namibia"]
[null,null,null,null,null,null,null,null,"Nauru"]
[null,null,null,null,null,null,null,null,"Nepal"]
[null,null,null,null,null,null,null,null,"Netherlands"]
[null,null,null,null,null,null,null,null,"New Zealand"]
[null,null,null,null,null,null,null,null,"Nicaragua"]
[null,null,null,null,null,null,null,null,"Niger"]
[null,null,null,null,null,null,null,null,"Nigeria"]
[null,null,null,null,null,null,null,null,"North Korea"]
[null,null,null,null,null,null,null,null,"Norway"]
[null,null,null,null,null,null,null,null,"Oman"]
[null,null,null,null,null,null,null,null,"Pakistan"]
[null,null,null,null,null,null,null,null,"Palau"]
[null,null,null,null,null,null,null,null,"Palestinian Territories"]
[null,null,null,null,null,null,null,null,"Panama"]
[null,null,null,null,null,null,null,null,"Papua New Guinea"]
[null,null,null,null,null,null,null,null,"Paraguay"]
[null,null,null,null,null,null,null,null,"Peru"]
[null,null,null,null,null,null,null,null,"Philippines"]
[null,null,null,null,null,null,null,null,"Poland"]
[null,null,null,null,null,null,null,null,"Portugal"]
[null,null,null,null,null,null,null,null,"Qatar"]
[null,null,null,null,null,null,null,null,"Romania"]
[null,null,null,null,null,null,null,null,"Russia"]
[null,null,null,null,null,null,null,null,"Rwanda"]
[null,null,null,null,null,null,null,null,"Saint Kitts and Nevis"]
[null,null,null,null,null,null,null,null,"Saint Lucia"]
[null,null,null,null,null,null,null,null,"Saint Vincent and the Grenadines"]
[null,null,null,null,null,null,null,null,"Samoa "]
[null,null,null,null,null,null,null,null,"San Marino"]
[null,null,null,null,null,null,null,null,"Sao Tome and Principe"]
[null,null,null,null,null,null,null,null,"Saudi Arabia"]
[null,null,null,null,null,null,null,null,"Senegal"]
[null,null,null,null,null,null,null,null,"Serbia"]
[null,null,null,null,null,null,null,null,"Seychelles"]
[null,null,null,null,null,null,null,null,"Sierra Leone"]
[null,null,null,null,null,null,null,null,"Singapore"]
[null,null,null,null,null,null,null,null,"Sint Maarten"]
[null,null,null,null,null,null,null,null,"Slovakia"]
[null,null,null,null,null,null,null,null,"Slovenia"]
[null,null,null,null,null,null,null,null,"Solomon Islands"]
[null,null,null,null,null,null,null,null,"Somalia"]
[null,null,null,null,null,null,null,null,"South Africa"]
[null,null,null,null,null,null,null,null,"South Korea"]
[null,null,null,null,null,null,null,null,"South Sudan"]
[null,null,null,null,null,null,null,null,"Spain"]
[null,null,null,null,null,null,null,null,"Sri Lanka"]
[null,null,null,null,null,null,null,null,"Sudan"]
[null,null,null,null,null,null,null,null,"Suriname"]
[null,null,null,null,null,null,null,null,"Swaziland"]
[null,null,null,null,null,null,null,null,"Sweden"]
[null,null,null,null,null,null,null,null,"Switzerland"]
[null,null,null,null,null,null,null,null,"Syria"]
[null,null,null,null,null,null,null,null,"Taiwan"]
[null,null,null,null,null,null,null,null,"Tajikistan"]
[null,null,null,null,null,null,null,null,"Tanzania"]
[null,null,null,null,null,null,null,null,"Thailand"]
[null,null,null,null,null,null,null,null,"Timor-Leste"]
[null,null,null,null,null,null,null,null,"Togo"]
[null,null,null,null,null,null,null,null,"Tonga"]
[null,null,null,null,null,null,null,null,"Trinidad and Tobago"]
[null,null,null,null,null,null,null,null,"Tunisia"]
[null,null,null,null,null,null,null,null,"Turkey"]
[null,null,null,null,null,null,null,null,"Turkmenistan"]
[null,null,null,null,null,null,null,null,"Tuvalu"]
[null,null,null,null,null,null,null,null,"Uganda"]
[null,null,null,null,null,null,null,null,"Ukraine"]
[null,null,null,null,null,null,null,null,"United Arab Emirates"]
[null,null,null,null,null,null,null,null,"United Kingdom"]
[null,null,null,null,null,null,null,null,"United States of America"]
[null,null,null,null,null,null,null,null,"Uruguay"]
[null,null,null,null,null,null,null,null,"Uzbekistan"]
[null,null,null,null,null,null,null,null,"Vanuatu"]
[null,null,null,null,null,null,null,null,"Venezuela"]
[null,null,null,null,null,null,null,null,"Vietnam"]
[null,null,null,null,null,null,null,null,"Yemen"]
[null,null,null,null,null,null,null,null,"Zambia"]
[null,null,null,null,null,null,null,null,"Zimbabwe "]